bitfinex-derivatives/quotes_BTCF0:USTF0_20250709
["timestamp","ask_amount","ask_price","bid_price","bid_amount"]
[1752019202378,0.15277989,109000.0,108990.0,0.18750665]
[1752019203476,0.42794359,109000.0,108990.0,0.4259362]
[1752019205977,0.42794359,109000.0,108990.0,0.37096595]
[1752019206878,0.35385288,109000.0,108990.0,0.37096595]
[1752019207277,0.35385288,109000.0,108990.0,0.33305595]
[1752019207477,0.35385288,109000.0,108990.0,0.34807595]
[1752019207979,0.35385288,109000.0,108990.0,0.33305595]
[1752019208377,0.35385288,109000.0,108990.0,0.34807595]
[1752019208878,0.35385288,109000.0,108990.0,0.33404065]
[1752019209079,0.35385288,109000.0,108990.0,0.36229543]
[1752019211782,0.35385288,109000.0,108990.0,0.17883613]
[1752019211979,0.35385288,109000.0,108990.0,0.16381613]
[1752019212178,0.35385288,109000.0,108990.0,0.34727553]
[1752019212786,0.35385288,109000.0,108990.0,0.16381613]
[1752019213083,0.35545834,109000.0,108990.0,0.16381613]
[1752019213283,0.35545834,109000.0,108990.0,0.34727553]
[1752019213583,0.34283834,109000.0,108990.0,0.16381613]
[1752019213981,0.34283834,109000.0,108990.0,0.15305993]
[1752019214378,0.34283834,109000.0,108990.0,0.35153923]
[1752019214572,0.34283834,109000.0,108990.0,0.35154959]
[1752019216075,0.33182402,109000.0,108990.0,0.37443959]
[1752019216385,0.3088637,109000.0,108990.0,0.40583959]
[1752019216586,0.3088637,109000.0,108990.0,0.43723959]
[1752019216782,0.3240437,109000.0,108990.0,0.43723959]
[1752019216983,0.001,109000.0,108990.0,0.43723959]
[1752019217193,0.2751466,109010.0,109000.0,0.1834426]
[1752019217489,0.2751466,109010.0,109000.0,0.35555112]
[1752019217691,0.2292874,109010.0,109000.0,0.35555112]
[1752019218083,0.183431,109010.0,109000.0,0.35555112]
[1752019218582,0.184431,109010.0,109000.0,0.35555112]
[1752019218784,0.185431,109010.0,109000.0,0.35555112]
[1752019219181,0.200611,109010.0,109000.0,0.35555112]
[1752019220983,0.185431,109010.0,109000.0,0.35555112]
[1752019222487,0.185431,109010.0,109000.0,0.46551071]
[1752019222990,0.1744187,109010.0,109000.0,0.46551071]
[1752019223890,0.1744187,109010.0,109000.0,0.35555112]
[1752019225101,0.1744187,109010.0,109000.0,0.46551071]
[1752019225892,0.1744187,109010.0,109000.0,0.48455613]
[1752019226092,0.16340651,109010.0,109000.0,0.48455515]
[1752019226390,0.16340651,109010.0,109000.0,0.47063186]
[1752019228182,0.16340651,109010.0,109000.0,0.4841382]
[1752019228976,0.16340651,109010.0,109000.0,0.47063176]
[1752019230690,0.16340651,109010.0,109000.0,0.48413512]
[1752019231387,0.17859651,109010.0,109000.0,0.48413512]
[1752019231692,0.16340651,109010.0,109000.0,0.48413512]
[1752019233081,0.15239424,109010.0,109000.0,0.48413512]
[1752019235494,0.1303697,109010.0,109000.0,0.48413512]
[1752019236097,0.11935743,109010.0,109000.0,0.48413512]
[1752019237690,0.13454743,109010.0,109000.0,0.48413512]
[1752019237994,0.19884743,109010.0,109000.0,0.48413512]
[1752019238404,0.16624743,109010.0,109000.0,0.48413512]
[1752019238604,0.15105743,109010.0,109000.0,0.48413512]
[1752019238899,0.11935743,109010.0,109000.0,0.47063176]
[1752019241700,0.11935743,109010.0,109000.0,1.09451176]
[1752019242997,0.10834537,109010.0,109000.0,1.09451176]
[1752019243199,0.10834537,109010.0,109000.0,1.08017307]
[1752019243398,0.10834537,109010.0,109000.0,1.09451167]
[1752019245102,0.10834537,109010.0,109000.0,0.98455208]
[1752019245304,0.10834537,109010.0,109000.0,1.12200157]
[1752019246203,0.09733339,109010.0,109000.0,1.12200157]
[1752019246594,0.09733339,109010.0,109000.0,1.12200148]
[1752019249003,0.09733339,109010.0,109000.0,1.10766297]
[1752019251407,0.1854257,109010.0,109000.0,1.10766297]
[1752019252605,0.10283995,109010.0,109000.0,1.10766297]
[1752019258913,0.10283995,109010.0,109000.0,1.11066297]
[1752019260521,0.10283995,109010.0,109000.0,1.06832751]
[1752019260715,0.10283995,109010.0,109000.0,1.11009093]
[1752019262319,0.10283995,109010.0,109000.0,0.97264144]
[1752019264218,0.10283995,109010.0,109000.0,0.34876144]
[1752019264521,0.15119995,109010.0,109000.0,0.90868144]
[1752019264712,0.18239995,109010.0,109000.0,0.90868144]
[1752019266718,0.18239995,109010.0,109000.0,1.04613093]
[1752019268321,0.18239995,109010.0,109000.0,1.04633093]
[1752019269021,0.18239995,109010.0,109000.0,0.90888144]
[1752019269318,0.18239995,109010.0,109000.0,1.04633093]
[1752019269524,0.07956,109010.0,109000.0,0.90888144]
[1752019270924,0.07956,109010.0,109000.0,1.23888144]
[1752019271222,0.07956,109010.0,109000.0,1.34896287]
[1752019271811,0.07956,109010.0,109000.0,0.72524287]
[1752019272020,0.07956,109010.0,109000.0,1.07093287]
[1752019272210,0.07956,109010.0,109000.0,1.10706979]
[1752019272521,0.07956,109010.0,109000.0,0.48346979]
[1752019272722,0.2629857,109010.0,109000.0,0.14090824]
[1752019272922,0.2756057,109010.0,109000.0,0.05834034]
[1752019273122,0.2756057,109010.0,109000.0,0.14087125]
[1752019274025,0.2756057,109010.0,109000.0,0.32431375]
[1752019274321,0.2629857,109010.0,109000.0,0.32431375]
[1752019274526,0.2629857,109010.0,109000.0,0.33967375]
[1752019274829,0.2629857,109010.0,109000.0,0.33867375]
[1752019275124,0.2629857,109010.0,109000.0,0.33767375]
[1752019275328,0.2629857,109010.0,109000.0,0.33967375]
[1752019275932,0.2629857,109010.0,109000.0,0.33867375]
[1752019276128,0.2639857,109010.0,109000.0,0.39365625]
[1752019276426,0.2639857,109010.0,109000.0,0.39165625]
[1752019278618,0.2639857,109010.0,109000.0,0.34989283]
[1752019278819,0.2639857,109010.0,109000.0,0.39026625]
[1752019280526,0.2639857,109010.0,109000.0,0.3904806]
[1752019282220,0.2639857,109010.0,109000.0,0.30794969]
[1752019284032,0.2639857,109010.0,109000.0,0.3904806]
[1752019285031,0.2766057,109010.0,109000.0,0.1916781]
[1752019285330,1.0838857,109010.0,109000.0,0.15035123]
[1752019285529,1.0838857,109010.0,109000.0,0.09536873]
[1752019285726,1.0838857,109010.0,109000.0,0.05416469]
[1752019287428,1.0838857,109010.0,109000.0,0.25177401]
[1752019289135,1.09888274,109010.0,109000.0,0.25177401]
[1752019289834,1.59728274,109010.0,109000.0,0.06833171]
[1752019291338,1.41380274,109010.0,109000.0,0.06833171]
[1752019291638,1.59728274,109010.0,109000.0,0.06833171]
[1752019292037,1.59728274,109010.0,109000.0,0.05416469]
[1752019292238,1.59728274,109010.0,109000.0,0.06852583]
[1752019292537,1.59728274,109010.0,109000.0,0.06852478]
[1752019292937,1.59728274,109010.0,109000.0,0.06803819]
[1752019293737,1.41380274,109010.0,109000.0,0.05404708]
[1752019294730,1.59728274,109010.0,109000.0,0.05404708]
[1752019295130,1.59728274,109010.0,109000.0,0.05401607]
[1752019296242,1.59728274,109010.0,109000.0,0.05402093]
[1752019301538,1.56810274,109010.0,109000.0,0.05402093]
[1752019301743,1.58072274,109010.0,109000.0,0.05402093]
[1752019305044,1.59103274,109010.0,109000.0,0.05402093]
[1752019305244,1.60365274,109010.0,109000.0,0.05402093]
[1752019306450,1.62658274,109010.0,109000.0,0.05402093]
[1752019307045,1.00278274,109010.0,109000.0,0.05402093]
[1752019307246,1.62658274,109010.0,109000.0,0.05405653]
[1752019307647,1.61396274,109010.0,109000.0,0.05405653]
[1752019308240,1.62658274,109010.0,109000.0,0.05405653]
[1752019308648,1.44310274,109010.0,109000.0,0.05405653]
[1752019309849,1.50731274,109010.0,109000.0,0.05405653]
[1752019310353,1.50731274,109010.0,109000.0,0.05407207]
[1752019310653,1.49469274,109010.0,109000.0,0.05407207]
[1752019310852,1.50731274,109010.0,109000.0,0.05407207]
[1752019312846,1.49469274,109010.0,109000.0,0.05407207]
[1752019313052,1.50731274,109010.0,109000.0,0.05407207]
[1752019313747,1.50731274,109010.0,109000.0,0.05410619]
[1752019314756,0.88351274,109010.0,109000.0,0.05410619]
[1752019314950,1.52289274,109010.0,109000.0,0.05410619]
[1752019315452,1.49445274,109010.0,109000.0,0.05410619]
[1752019315845,1.50707274,109010.0,109000.0,0.05410619]
[1752019316051,1.49445274,109010.0,109000.0,0.05410619]
[1752019316454,1.50707274,109010.0,109000.0,0.05410619]
[1752019316952,0.88351274,109010.0,109000.0,0.05410619]
[1752019317251,1.52301274,109010.0,109000.0,0.03996141]
[1752019318054,0.89933274,109010.0,109000.0,0.03996141]
[1752019318258,1.52293274,109010.0,109000.0,0.03996141]
[1752019318558,1.50711274,109010.0,109000.0,0.03996141]
[1752019320157,0.88351274,109010.0,109000.0,0.08121112]
[1752019320357,1.52289274,109010.0,109000.0,0.03996141]
[1752019320556,1.52289274,109010.0,109000.0,0.04192557]
[1752019323968,1.49996274,109010.0,109000.0,0.04192557]
[1752019325168,1.49996274,109010.0,109000.0,0.08317528]
[1752019325968,1.58248404,109010.0,109000.0,0.08317528]
[1752019327068,1.60541404,109010.0,109000.0,0.08317528]
[1752019328464,1.58248404,109010.0,109000.0,0.08317528]
[1752019330975,1.60541404,109010.0,109000.0,0.08317528]
[1752019339883,1.60541404,109010.0,109000.0,0.09751872]
[1752019342478,1.60769404,109010.0,109000.0,0.09751872]
[1752019344788,0.98185404,109010.0,109000.0,0.09751872]
[1752019345085,1.60761404,109010.0,109000.0,0.09751872]
[1752019346191,1.62489415,109010.0,109000.0,0.09751872]
[1752019347886,1.60907415,109010.0,109000.0,0.09751872]
[1752019355197,1.56321415,109010.0,109000.0,0.09751872]
[1752019359297,1.56321415,109010.0,109000.0,0.09751878]
[1752019360097,1.56321415,109010.0,109000.0,0.08317528]
[1752019366899,1.56321415,109010.0,109000.0,0.04192557]
[1752019377400,1.56321415,109010.0,109000.0,0.08317528]
[1752019383816,1.56321415,109010.0,109000.0,0.04192557]
[1752019387421,1.56321415,109010.0,109000.0,0.08317528]
[1752019390821,1.56321415,109010.0,109000.0,0.09736404]
[1752019392018,1.56321415,109010.0,109000.0,0.09751892]
[1752019400917,1.56321415,109010.0,109000.0,0.05626921]
[1752019402334,1.56321415,109010.0,109000.0,0.09751892]
[1752019404125,1.56321415,109010.0,109000.0,0.08317528]
[1752019404324,1.56321415,109010.0,109000.0,0.09748091]
[1752019411432,1.56321415,109010.0,109000.0,0.01626979]
[1752019411733,1.56321415,109010.0,109000.0,0.09753818]
[1752019412333,1.56321415,109010.0,109000.0,0.01626979]
[1752019412529,1.48069285,109010.0,109000.0,0.01626979]
[1752019416735,1.48069285,109010.0,109000.0,0.00196416]
[1752019419542,1.5632295,109010.0,109000.0,0.08323354]
[1752019420041,1.5632295,109010.0,109000.0,0.09757722]
[1752019423439,1.5861595,109010.0,109000.0,0.09757722]
[1752019427938,1.5735395,109010.0,109000.0,0.09757722]
[1752019428138,1.5735395,109010.0,109000.0,0.11387722]
[1752019430041,1.5861595,109010.0,109000.0,0.09757722]
[1752019432042,1.50362285,109010.0,109000.0,0.05627199]
[1752019433545,1.49100285,109010.0,109000.0,0.05627199]
[1752019433748,1.50362285,109010.0,109000.0,0.05627199]
[1752019434841,1.5861595,109010.0,109000.0,0.05627199]
[1752019438051,1.5861595,109010.0,109000.0,0.04192831]
[1752019438252,1.5735395,109010.0,109000.0,0.07173212]
[1752019438752,1.5861595,109010.0,109000.0,0.11303735]
[1752019440557,1.5861595,109010.0,109000.0,0.07173212]
[1752019441256,1.5861595,109010.0,109000.0,0.09757735]
[1752019441458,0.1834423,109000.0,108990.0,0.09637948]
[1752019441755,0.2754323,109000.0,108990.0,0.04130584]
[1752019443355,0.20083356,108990.0,108980.0,0.11841122]
[1752019443554,0.87180432,108990.0,108980.0,0.13152559]
[1752019444252,0.85673432,108990.0,108980.0,0.13152559]
[1752019444459,0.90190432,108990.0,108980.0,0.13152559]
[1752019445157,0.92483432,108990.0,108980.0,0.13152559]
[1752019445453,0.98905432,108990.0,108980.0,0.13152559]
[1752019446159,0.98905432,108990.0,108980.0,0.07053364]
[1752019446959,0.98905432,108990.0,108980.0,0.01546]
[1752019447361,0.98905432,108990.0,108980.0,0.01746]
[1752019447959,0.98905432,108990.0,108980.0,0.01546]
[1752019448153,0.98905432,108990.0,108980.0,0.07796]
[1752019454467,0.183476,108980.0,108970.0,0.05507364]
[1752019454656,0.183476,108980.0,108970.0,0.13223364]
[1752019454862,0.214776,108980.0,108970.0,0.13223364]
[1752019455061,0.23083638,108980.0,108970.0,0.13223364]
[1752019455570,0.23083638,108980.0,108970.0,0.13323364]
[1752019455762,0.25377638,108980.0,108970.0,0.13323364]
[1752019457871,0.25377638,108980.0,108970.0,0.07816]
[1752019458171,0.25377638,108980.0,108970.0,0.13323364]
[1752019458878,0.29809638,108980.0,108970.0,0.001]
[1752019468792,0.1835097,108960.0,108950.0,0.16421972]
[1752019468983,0.82327642,108960.0,108950.0,0.24217972]
[1752019469178,0.80830008,108960.0,108950.0,0.24217972]
[1752019469383,0.82402008,108960.0,108950.0,0.05690926]
[1752019469584,0.88872008,108960.0,108950.0,0.01535879]
[1752019469780,0.87300008,108960.0,108950.0,0.01535879]
[1752019469981,0.90069172,108960.0,108950.0,0.01835879]
[1752019470290,0.88497172,108960.0,108950.0,0.02499562]
[1752019470684,0.90069172,108960.0,108950.0,0.02099562]
[1752019470886,0.90069172,108960.0,108950.0,0.01899562]
[1752019471888,0.90069172,108960.0,108950.0,0.00283562]
[1752019472094,0.98589002,108960.0,108950.0,0.00283562]
[1752019472392,0.98589002,108960.0,108950.0,0.01636684]
[1752019474693,1.05013002,108960.0,108950.0,0.01636684]
[1752019475285,1.03751002,108960.0,108950.0,0.03252684]
[1752019476500,1.0385004,108960.0,108950.0,0.03252684]
[1752019478600,1.0614404,108960.0,108950.0,0.03252684]
[1752019482097,1.0843804,108960.0,108950.0,0.03252684]
[1752019484700,1.0843804,108960.0,108950.0,0.01636684]
[1752019484904,1.0970004,108960.0,108950.0,0.03067524]
[1752019485896,1.0970004,108960.0,108950.0,0.01636684]
[1752019486096,1.0970004,108960.0,108950.0,0.03067635]
[1752019486502,1.0843804,108960.0,108950.0,0.03067635]
[1752019488697,1.0843804,108960.0,108950.0,0.04683635]
[1752019488903,1.0843804,108960.0,108950.0,0.04687608]
[1752019494102,1.0970004,108960.0,108950.0,0.04687608]
[1752019494304,1.0970004,108960.0,108950.0,0.03071608]
[1752019494502,1.0970004,108960.0,108950.0,0.03058155]
[1752019497712,1.0812804,108960.0,108950.0,0.03058155]
[1752019498015,0.20120613,108950.0,108940.0,0.05507364]
[1752019498210,0.28236979,108950.0,108940.0,0.05507364]
[1752019498613,0.28261651,108950.0,108940.0,0.05507364]
[1752019499910,0.28361651,108950.0,108940.0,0.05507364]
[1752019500114,0.26829651,108950.0,108940.0,0.05507364]
[1752019500516,0.26829651,108950.0,108940.0,0.07081364]
[1752019500818,0.34786651,108950.0,108940.0,0.07081364]
[1752019501318,0.33254651,108950.0,108940.0,0.05507364]
[1752019501516,0.34786651,108950.0,108940.0,0.07081364]
[1752019501713,0.34786651,108950.0,108940.0,0.01574]
[1752019501915,0.37080651,108950.0,108940.0,0.01574]
[1752019502110,0.39374651,108950.0,108940.0,0.01574]
[1752019503309,0.39374651,108950.0,108940.0,0.05705299]
[1752019504519,0.39374651,108950.0,108940.0,0.01574]
[1752019509515,0.39473689,108950.0,108940.0,0.01574]
[1752019509924,0.39473689,108950.0,108940.0,0.02945349]
[1752019514526,0.39473689,108950.0,108940.0,0.01574]
[1752019514726,0.39473689,108950.0,108940.0,0.0294554]
[1752019514928,0.40735689,108950.0,108940.0,0.0294554]
[1752019516233,0.40735689,108950.0,108940.0,0.07074104]
[1752019516536,0.39473689,108950.0,108940.0,0.07074104]
[1752019519535,0.39473689,108950.0,108940.0,0.07074907]
[1752019520537,0.39473689,108950.0,108940.0,0.07074953]
[1752019521737,0.39473689,108950.0,108940.0,0.08500466]
[1752019528246,0.39473689,108950.0,108940.0,0.14005218]
[1752019542462,0.39473689,108950.0,108940.0,0.1400246]
[1752019544563,0.39473689,108950.0,108940.0,0.08497708]
[1752019544764,0.39473689,108950.0,108940.0,0.07074953]
[1752019545472,0.39473689,108950.0,108940.0,0.08510041]
[1752019550671,0.39473689,108950.0,108940.0,0.14014793]
[1752019559976,0.39473689,108950.0,108940.0,0.14019064]
[1752019563582,0.39473689,108950.0,108940.0,0.08514312]
[1752019568989,0.39473689,108950.0,108940.0,0.14019064]
[1752019575799,0.39473689,108950.0,108940.0,0.12583976]
[1752019576601,0.39473689,108950.0,108940.0,0.14931976]
[1752019576800,0.39473689,108950.0,108940.0,0.18141976]
[1752019578399,0.95331689,108950.0,108940.0,0.21211976]
[1752019579199,0.31431689,108950.0,108940.0,0.95923916]
[1752019579394,0.3937401,108960.0,108950.0,0.1835266]
[1752019579600,0.3937277,108960.0,108950.0,0.19918729]
[1752019579987,0.3937277,108960.0,108950.0,0.14409741]
[1752019580193,0.3937277,108960.0,108950.0,0.15832535]
[1752019580900,0.3937277,108960.0,108950.0,0.21341523]
[1752019581101,0.3937277,108960.0,108950.0,0.25466911]
[1752019581304,0.3937277,108960.0,108950.0,0.43819601]
[1752019582198,0.3947277,108960.0,108950.0,0.43819601]
[1752019582398,0.3947277,108960.0,108950.0,0.25466911]
[1752019583097,0.3947277,108960.0,108950.0,0.21508911]
[1752019583298,0.3947277,108960.0,108950.0,0.25510911]
[1752019583499,0.3947277,108960.0,108950.0,0.43863581]
[1752019584102,0.3947277,108960.0,108950.0,0.42440787]
[1752019584301,0.3947277,108960.0,108950.0,0.34183658]
[1752019585306,0.3947277,108960.0,108950.0,0.35183658]
[1752019586306,0.3947277,108960.0,108950.0,0.39306461]
[1752019586905,0.3029665,108960.0,108950.0,0.39306461]
[1752019587295,0.3029665,108960.0,108950.0,0.43440787]
[1752019587498,0.3029665,108960.0,108950.0,0.44567431]
[1752019588105,0.3019665,108960.0,108950.0,0.44567431]
[1752019588304,0.3019665,108960.0,108950.0,0.36410302]
[1752019590204,0.3019665,108960.0,108950.0,0.39158443]
[1752019591207,0.3019665,108960.0,108950.0,0.44651916]
[1752019592714,0.256088,108960.0,108950.0,0.44651916]
[1752019592909,0.31990678,108970.0,108960.0,0.18351]
[1752019593110,0.31990678,108970.0,108960.0,0.35804099]
[1752019593311,0.31990678,108970.0,108960.0,0.38175099]
[1752019593507,0.2604583,108980.0,108970.0,0.1834932]
[1752019593811,0.22750961,108980.0,108970.0,0.28660008]
[1752019594109,0.24396961,108980.0,108970.0,0.32779479]
[1752019594302,0.24396961,108980.0,108970.0,0.28660008]
[1752019594498,0.24396961,108980.0,108970.0,0.32779479]
[1752019594705,0.24396961,108980.0,108970.0,0.28660008]
[1752019595002,0.24396961,108980.0,108970.0,0.32779479]
[1752019595202,0.24396961,108980.0,108970.0,0.30090802]
[1752019595203,0.27416961,108980.0,108970.0,0.30090802]
[1752019595513,0.27616961,108980.0,108970.0,0.30090802]
[1752019597111,0.25970961,108980.0,108970.0,0.30090802]
[1752019597307,0.25870961,108980.0,108970.0,0.30090802]
[1752019597907,0.27516961,108980.0,108970.0,0.30090802]
[1752019598918,0.30636961,108980.0,108970.0,0.30090802]
[1752019599513,0.30636961,108980.0,108970.0,0.30090792]
[1752019599715,0.30636961,108980.0,108970.0,0.01529482]
[1752019600524,0.31898961,108980.0,108970.0,0.01529482]
[1752019603519,0.31898961,108980.0,108970.0,0.05648953]
[1752019610323,0.31898961,108980.0,108970.0,0.05652833]
[1752019617427,0.31898961,108980.0,108970.0,0.11145461]
[1752019618820,0.31898961,108980.0,108970.0,0.11145472]
[1752019619829,0.31898961,108980.0,108970.0,0.05652844]
[1752019620029,0.31898961,108980.0,108970.0,0.11145472]
[1752019620530,0.31898961,108980.0,108970.0,0.05652844]
[1752019621038,0.41937706,108980.0,108970.0,0.05652844]
[1752019621528,0.41937706,108980.0,108970.0,0.01533373]
[1752019621529,0.50179032,108980.0,108970.0,0.01533373]
[1752019625431,1.60179032,108980.0,108970.0,0.01533373]
[1752019632335,1.51937706,108980.0,108970.0,0.01533373]
[1752019635539,1.51937706,108980.0,108970.0,0.0153352]
[1752019638239,1.60179032,108980.0,108970.0,0.0153352]
[1752019639041,1.51937706,108980.0,108970.0,0.0153352]
[1752019639334,1.60179032,108980.0,108970.0,0.0153352]
[1752019641247,1.60179032,108980.0,108970.0,0.01533518]
[1752019658661,0.1834931,108970.0,108960.0,0.10229471]
[1752019658864,0.85539998,108970.0,108960.0,0.10044602]
[1752019659154,0.85539998,108970.0,108960.0,0.11698602]
[1752019659358,0.83993998,108970.0,108960.0,0.11698602]
[1752019659558,0.85539998,108970.0,108960.0,0.11698602]
[1752019660562,0.18351,108960.0,108950.0,0.05506386]
[1752019660760,0.20121861,108960.0,108950.0,0.10440386]
[1752019660959,0.20171205,108960.0,108950.0,0.10440386]
[1752019661762,0.27483941,108960.0,108950.0,0.10440386]
[1752019662263,0.27583941,108960.0,108950.0,0.10440386]
[1752019662761,0.27583941,108960.0,108950.0,0.04947758]
[1752019663660,0.27583941,108960.0,108950.0,0.08037758]
[1752019664866,0.27583941,108960.0,108950.0,0.06383758]
[1752019665062,0.29129941,108960.0,108950.0,0.08037758]
[1752019670570,0.29129941,108960.0,108950.0,0.10391758]
[1752019682581,0.32209941,108960.0,108950.0,0.10391758]
[1752019687287,0.35329941,108960.0,108950.0,0.10391758]
[1752019689285,0.35329941,108960.0,108950.0,0.11812975]
[1752019691885,0.35379285,108960.0,108950.0,0.11812975]
[1752019694596,0.35379285,108960.0,108950.0,0.08722975]
[1752019696990,0.35379285,108960.0,108950.0,0.14215603]
[1752019697194,0.32299285,108960.0,108950.0,0.17235603]
[1752019706608,0.32299285,108960.0,108950.0,0.17249299]
[1752019709505,0.35459285,108960.0,108950.0,0.05456671]
[1752019712309,0.35459285,108960.0,108950.0,0.05456669]
[1752019715111,0.35459285,108960.0,108950.0,0.03102669]
[1752019718002,0.27633285,108960.0,108950.0,0.03102669]
[1752019718208,0.0458738,108970.0,108950.0,0.65238187]
[1752019718403,0.2752543,108970.0,108960.0,0.2076]
[1752019718605,0.2752543,108970.0,108960.0,0.35864633]
[1752019718911,0.2752543,108970.0,108960.0,0.37431633]
[1752019719212,0.2752543,108970.0,108960.0,0.47133794]
[1752019720899,0.2752543,108970.0,108960.0,0.4426427]
[1752019721103,0.2752543,108970.0,108960.0,0.4713357]
[1752019722012,0.2752543,108970.0,108960.0,0.20525441]
[1752019722211,0.2904443,108970.0,108960.0,0.20525441]
[1752019722409,0.2752543,108970.0,108960.0,0.20525441]
[1752019722612,0.2904443,108970.0,108960.0,0.24649181]
[1752019723201,0.2904443,108970.0,108960.0,0.42999489]
[1752019734819,0.2904443,108970.0,108960.0,0.44021688]
[1752019735520,0.2752543,108970.0,108960.0,0.44021688]
[1752019735716,0.2752543,108970.0,108960.0,0.48155769]
[1752019738822,0.2912143,108970.0,108960.0,0.48155769]
[1752019739515,0.2912143,108970.0,108960.0,0.48155693]
[1752019740117,0.0937245,109000.0,108970.0,0.0458696]
[1752019740311,0.14182807,109000.0,108990.0,0.1996395]
[1752019740513,0.2751549,109010.0,109000.0,0.1834427]
[1752019740712,0.2751549,109010.0,109000.0,0.54831494]
[1752019740713,0.20052698,109010.0,109000.0,0.54831494]
[1752019740913,0.36624383,109020.0,109010.0,0.1834258]
[1752019741116,0.36624383,109020.0,109010.0,0.28381954]
[1752019741524,0.36624383,109020.0,109010.0,0.28431648]
[1752019742422,0.32038893,109020.0,109010.0,0.28431648]
[1752019743221,0.32238893,109020.0,109010.0,0.28431648]
[1752019743418,0.35528893,109020.0,109010.0,0.28431648]
[1752019744633,0.07601271,109020.0,109010.0,0.28431648]
[1752019744838,0.01773034,109030.0,109020.0,0.183409]
[1752019745033,0.20112254,109030.0,109020.0,0.25985318]
[1752019745222,0.23312254,109030.0,109020.0,0.22895318]
[1752019745528,0.26332254,109030.0,109020.0,0.22895318]
[1752019745729,0.26332254,109030.0,109020.0,0.26965318]
[1752019746334,0.26632254,109030.0,109020.0,0.26965318]
[1752019749034,0.26632254,109030.0,109020.0,0.25530744]
[1752019749234,0.26632254,109030.0,109020.0,0.26964653]
[1752019749432,0.15735984,109030.0,109020.0,0.26964653]
[1752019749836,0.34075244,109030.0,109020.0,0.26964653]
[1752019751530,0.1396295,109030.0,109020.0,0.60964653]
[1752019751729,0.0774295,109030.0,109020.0,0.26964653]
[1752019751926,0.0774295,109030.0,109020.0,0.30074653]
[1752019753227,0.260822,109030.0,109020.0,0.30074653]
[1752019754428,0.260822,109030.0,109020.0,0.08623753]
[1752019754629,0.325522,109030.0,109020.0,0.08623753]
[1752019755235,0.325522,109030.0,109020.0,0.26964683]
[1752019757644,0.325522,109030.0,109020.0,0.25530774]
[1752019757941,0.325522,109030.0,109020.0,0.26954431]
[1752019760147,0.325522,109030.0,109020.0,0.08613501]
[1752019760346,0.325522,109030.0,109020.0,0.05593501]
[1752019760645,0.325522,109030.0,109020.0,0.03141501]
[1752019761338,0.325522,109030.0,109020.0,0.05585501]
[1752019762641,0.325522,109030.0,109020.0,0.03141501]
[1752019762850,0.325522,109030.0,109020.0,0.01523501]
[1752019762851,0.951602,109030.0,109020.0,0.01523501]
[1752019763041,0.951602,109030.0,109020.0,0.02870138]
[1752019768453,1.47677208,109030.0,109020.0,0.02870138]
[1752019768642,1.5831826,109030.0,109020.0,0.02870138]
[1752019769951,1.66559586,109030.0,109020.0,0.02870138]
[1752019772150,1.41559586,109030.0,109020.0,0.02870138]
[1752019773652,1.41559586,109030.0,109020.0,0.02969982]
[1752019775041,1.41559586,109030.0,109020.0,0.02980594]
[1752019776653,1.23214786,109030.0,109020.0,0.02980594]
[1752019777945,0.60606786,109030.0,109020.0,0.02980595]
[1752019778252,0.951282,109030.0,109020.0,0.04566595]
[1752019778751,0.951282,109030.0,109020.0,0.02980595]
[1752019779252,0.950282,109030.0,109020.0,0.02980595]
[1752019780456,0.950282,109030.0,109020.0,0.04566595]
[1752019780646,0.950282,109030.0,109020.0,0.07656595]
[1752019782847,0.950282,109030.0,109020.0,0.02980595]
[1752019786558,0.950282,109030.0,109020.0,0.02980526]
[1752019787958,0.950282,109030.0,109020.0,0.01546325]
[1752019788157,1.03269526,109030.0,109020.0,0.01546325]
[1752019789462,1.03269526,109030.0,109020.0,0.04796325]
[1752019793855,1.03269526,109030.0,109020.0,0.06230514]
[1752019796867,1.13139951,109030.0,109020.0,0.06230514]
[1752019798070,1.13139951,109030.0,109020.0,0.04796325]
[1752019798272,1.13139951,109030.0,109020.0,0.06230523]
[1752019802984,1.13139951,109030.0,109020.0,0.0626351]
[1752019804187,1.13139951,109030.0,109020.0,0.0301351]
[1752019806288,1.04898625,109030.0,109020.0,0.0301351]
[1752019807890,1.1588706,109030.0,109020.0,0.0301351]
[1752019812189,1.14904175,109030.0,109010.0,0.04137728]
[1752019812485,0.183443,109000.0,108990.0,0.08693]
[1752019812686,1.434083,109000.0,108990.0,0.1029]
[1752019813589,1.465583,109000.0,108990.0,0.1029]
[1752019814693,1.47598395,109000.0,108990.0,0.1029]
[1752019814892,1.47598395,109000.0,108990.0,0.1049]
[1752019815795,1.47598395,109000.0,108990.0,0.0641]
[1752019816088,1.47598395,109000.0,108990.0,0.002]
[1752019816286,1.58873121,109000.0,108990.0,0.002]
[1752019817393,0.1834598,108990.0,108980.0,0.0653]
[1752019817594,0.23347703,108990.0,108980.0,0.07942131]
[1752019817796,0.23397853,108990.0,108980.0,0.07892437]
[1752019820294,0.23597853,108990.0,108980.0,0.07892437]
[1752019820497,0.23597853,108990.0,108980.0,0.04612437]
[1752019821594,0.23597853,108990.0,108980.0,0.03015437]
[1752019821997,0.23597853,108990.0,108980.0,0.04612437]
[1752019824397,0.23597853,108990.0,108980.0,0.05980604]
[1752019830795,0.86117853,108990.0,108980.0,0.05980604]
[1752019831293,0.23597853,108990.0,108980.0,0.09170604]
[1752019831498,0.82977853,108990.0,108980.0,0.11600604]
[1752019832402,0.20457853,108990.0,108980.0,0.11600604]
[1752019832602,0.82985853,108990.0,108980.0,0.11600604]
[1752019837507,0.82985853,108990.0,108980.0,0.11592612]
[1752019842110,0.86115853,108990.0,108980.0,0.11592612]
[1752019845209,0.94370579,108990.0,108980.0,0.11592612]
[1752019847914,0.94370579,108990.0,108980.0,0.13027208]
[1752019851718,0.94370579,108990.0,108980.0,0.09837208]
[1752019852015,0.97570579,108990.0,108980.0,0.07407204]
[1752019858018,0.97570579,108990.0,108980.0,0.02794767]
[1752019860014,0.97570579,108990.0,108980.0,0.01434592]
[1752019860313,0.97570579,108990.0,108980.0,0.02804329]
[1752019860523,0.97570579,108990.0,108980.0,0.02804332]
[1752019861225,0.97570579,108990.0,108960.0,0.24315651]
[1752019861226,0.1834936,108970.0,108960.0,0.24315651]
[1752019861420,0.8077736,108970.0,108960.0,0.24016669]
[1752019861716,0.84132129,108970.0,108960.0,0.1335554]
[1752019861916,0.84157204,108970.0,108960.0,0.18422669]
[1752019862109,0.89127561,108970.0,108960.0,0.18422669]
[1752019862311,0.89127561,108970.0,108960.0,0.16757669]
[1752019862715,0.89127561,108970.0,108960.0,0.16857669]
[1752019862918,0.96614585,108970.0,108960.0,0.0860054]
[1752019863322,0.96614585,108970.0,108960.0,0.03097571]
[1752019863515,0.96614585,108970.0,108960.0,0.02021475]
[1752019864820,1.04869311,108970.0,108960.0,0.02021475]
[1752019865321,0.96614585,108970.0,108960.0,0.02021475]
[1752019865526,1.04869311,108970.0,108960.0,0.02021475]
[1752019866132,1.06410256,108970.0,108960.0,0.001]
[1752019866428,1.14664982,108970.0,108960.0,0.001]
[1752019868129,1.06410256,108970.0,108960.0,0.001]